fUSD/lending_fUSD_20260413
["ID","MTS","AMOUNT","RATE_DAILY","PERIOD"]
[420356218,1776024645515,-401.94,0.00014719,2]
[420356220,1776024645530,-2932.24196999,0.00014722,2]
[420356222,1776024645550,-246.41702685,0.00014739,2]
[420356224,1776024645564,-1500.0,0.00014795,2]
[420356226,1776024645574,-246.41702685,0.00014795,2]
[420356228,1776024645589,-1000.0,0.00014821,2]
[420356230,1776024645598,-1003.88091513,0.00014821,2]
[420356232,1776024645614,-1000.0,0.00014821,2]
[420356233,1776024645627,-1000.0,0.00014821,2]
[420356235,1776024645636,-56902.62838815,0.00014826,2]
[420356237,1776024645645,-151.0,0.00014826,2]
[420356239,1776024645662,-151.0,0.00014826,2]
[420356241,1776024645676,-151.0,0.00014826,2]
[420356243,1776024645685,-151.0,0.00014826,2]
[420356245,1776024645700,-151.0,0.00014826,2]
[420356247,1776024645711,-2000.0,0.0001485,2]
[420356249,1776024645721,-2000.0,0.0001485,2]
[420356251,1776024645730,-2000.0,0.0001485,2]
[420356253,1776024645740,-246.41702685,0.00014851,2]
[420356255,1776024645749,-350.0,0.00014901,2]
[420356257,1776024645758,-246.41702685,0.00014907,2]
[420356260,1776024645767,-500.0,0.00014921,2]
[420356263,1776024645777,-500.0,0.00014921,2]
[420356266,1776024645785,-1000.0,0.00014921,2]
[420356268,1776024645795,-1000.0,0.00014921,2]
[420356270,1776024645804,-500.0,0.00014921,2]
[420356272,1776024645813,-500.78390571,0.00014921,2]
[420356274,1776024645822,-1000.0,0.00014921,2]
[420356276,1776024645830,-1000.0,0.00014921,2]
[420356278,1776024645839,-246.41702685,0.00014963,2]
[420356280,1776024645848,-1600.0,0.00014968,2]
[420356282,1776024645857,-352.68356107,0.00014976,2]
[420356284,1776024645867,-495.0,0.00015,2]
[420356286,1776024645876,-495.0,0.00015,2]
[420356288,1776024645885,-300.0,0.00015,2]
[420356290,1776024645894,-161.1541,0.00015,2]
[420356292,1776024645903,-1087.38680092,0.00015,2]
[420356296,1776024645925,-306.069,0.00015,2]
[420356304,1776024646005,-606.54419908,0.00015,2]
[420356307,1776024646016,-2000.0,0.00015,2]
[420356309,1776024646025,-2000.0,0.00015,2]
[420356311,1776024646035,-60.66101883,0.00015,2]
[420356313,1776024646048,-246.41702685,0.00015019,2]
[420356315,1776024646058,-500.0,0.0001502,2]
[420356317,1776024646067,-500.0,0.0001502,2]
[420356319,1776024646076,-500.0,0.0001502,2]
[420356321,1776024646086,-500.0,0.0001502,2]
[420356323,1776024646100,-154.364219,0.0001502,2]
[420356325,1776024646111,-154.364219,0.0001502,2]
[420356327,1776024646122,-154.364219,0.0001502,2]
[420356329,1776024646136,-154.364219,0.0001502,2]
[420356331,1776024646146,-500.0,0.0001502,2]
[420356333,1776024646158,-1000.0,0.00015021,2]
[420356335,1776024646169,-1000.0,0.00015021,2]
[420356337,1776024646181,-1002.08828386,0.00015021,2]
[420356339,1776024646193,-1000.0,0.00015021,2]
[420356341,1776024646204,-1000.0,0.00015021,2]
[420356343,1776024646218,-1000.0,0.00015021,2]
[420356345,1776024646228,-503.24034156,0.00015021,2]
[420356347,1776024646247,-350.0,0.00015028,2]
[420356349,1776024646260,-154.0,0.00015068,2]
[420356351,1776024646269,-234.57,0.00015068,2]
[420356353,1776024646298,-571.759107,0.00015068,2]
[420356355,1776024646310,-571.759107,0.00015068,2]
[420356357,1776024646347,-571.759107,0.00015068,2]
[420356359,1776024646367,-571.759107,0.00015068,2]
[420356361,1776024646458,-571.759107,0.00015068,2]
[420356363,1776024646613,-571.759107,0.00015068,2]
[420356365,1776024646698,-571.759107,0.00015068,2]
[420356367,1776024646739,-571.759107,0.00015068,2]
[420356368,1776024646754,-800.0,0.00015068,2]
[420356371,1776024646771,-246.41702685,0.00015075,2]
[420356373,1776024646787,-350.0,0.00015079,2]
[420356375,1776024646804,-246.41702685,0.00015131,2]
[420356377,1776024646816,-367.33634858,0.00015137,2]
[420356379,1776024646834,-246.41702685,0.00015187,2]
[420356381,1776024646852,-313.0,0.000152,2]
[420356383,1776024646867,-1000.0,0.00015221,2]
[420356385,1776024646879,-246.41702685,0.00015243,2]
[420356386,1776024646897,-246.41702685,0.00015299,2]
[420356388,1776024646911,-2932.24196999,0.00015311,2]
[420356390,1776024646921,-350.0,0.00015337,2]
[420356392,1776024646940,-246.41702685,0.00015354,2]
[420356394,1776024646950,-1000.0,0.00015368,2]
[420356396,1776024646959,-504.47655978,0.00015368,2]
[420356398,1776024646976,-1004.3708355,0.00015368,2]
[420356406,1776024647055,-495.6291645,0.00015368,2]
[420356408,1776024647069,-246.41702685,0.0001541,2]
[420356410,1776024647078,-401.94,0.00015419,2]
[420356412,1776024647088,-246.41702685,0.00015466,2]
[420356414,1776024647100,-1500.0,0.00015468,2]
[420356416,1776024647110,-1500.0,0.00015468,2]
[420356418,1776024647120,-1352.18651515,0.00015468,2]
[420356420,1776024647129,-1000.0,0.00015468,2]
[420356422,1776024647140,-329.14,0.00015495,2]
[420356424,1776024647150,-618.71152982,0.000155,7]
[420356426,1776024647159,-151.0,0.000155,2]
[420356428,1776024647169,-500.0,0.00015502,2]
[420356430,1776024647183,-192.36,0.00015507,2]
[420356432,1776024647193,-246.41702685,0.00015522,2]
[420356434,1776024647202,-1500.0,0.00015568,2]
[420356436,1776024647216,-1500.0,0.00015568,2]
[420356438,1776024647230,-1500.0,0.00015568,2]
[420356440,1776024647241,-502.30491696,0.00015568,2]
[420356442,1776024647251,-1500.0,0.00015568,2]
[420356444,1776024647268,-172.93384902,0.00015575,2]
[420356446,1776024647280,-246.41702685,0.00015578,2]
[420356449,1776024647292,-734.57612012,0.00015634,2]
[420356451,1776024647316,-246.41702685,0.00015634,2]
[420356453,1776024647326,-246.41702685,0.0001569,2]
[420356455,1776024647335,-4400.0,0.000157,5]
[420356456,1776024647355,-352.68356107,0.00015707,2]
[420356457,1776024647365,-246.41702685,0.00015746,2]
[420356458,1776024647375,-816.93981019,0.00015768,2]
[420356459,1776024647388,-5500.0,0.000158,5]
[420356460,1776024647410,-246.41702685,0.00015802,2]
[420356461,1776024647419,-246.41702685,0.00015858,2]
[420356462,1776024647432,-500.0,0.0001589,2]
[420356463,1776024647454,-500.0,0.0001589,2]
[420356464,1776024647464,-396.77262013,0.0001589,2]
[420356465,1776024647474,-154.0,0.0001589,2]
[420356466,1776024647490,-2000.0,0.0001589,2]
[420356467,1776024647503,-192.36,0.00015895,2]
[420356468,1776024647513,-154.5432,0.000159,2]
[420356469,1776024647523,-1100.0,0.000159,5]
[420356471,1776024647538,-2932.24196999,0.000159,2]
[420356473,1776024647549,-7401.86486107,0.000159,2]
[420356475,1776024647558,-246.41702685,0.00015914,2]
[420356477,1776024647573,-1834.25972323,0.00015916,2]
[420356480,1776024647589,-5031.6692643,0.0001596,2]
[420356482,1776024647599,-372.8570975,0.00015961,2]
[420356484,1776024647611,-502.07568744,0.0001599,2]
[420356486,1776024647635,-500.0,0.00015999,2]
[420356488,1776024647644,-500.0,0.00015999,2]
[420356490,1776024647676,-514.88,0.00015999,2]
[420356492,1776024647686,-500.0,0.00015999,2]
[420356494,1776024647707,-500.0,0.00015999,2]
[420356496,1776024647737,-224459.95568524,0.00016,2]
[420356497,1776024647783,-250.0,0.00016,2]
[420356500,1776024647823,-250.0,0.00016,2]
[420356502,1776024647863,-2902252.85936576,0.00016,2]
[420356504,1776024647893,-151.0,0.00016,2]
[420356506,1776024647927,-273.978909,0.00016,2]
[420356508,1776024647961,-151.0,0.00016,2]
[420356510,1776024647987,-151.0,0.00016,2]
[420356511,1776024648018,-151.0,0.00016,2]
[420356513,1776024648031,-151.0,0.00016,2]
[420356516,1776024648060,-151.0,0.00016,2]
[420356517,1776024648073,-151.0,0.00016,2]
[420356520,1776024648086,-189.886052,0.00016,2]
[420356521,1776024648111,-571.759107,0.00016,2]
[420356523,1776024648121,-571.759107,0.00016,2]
[420356525,1776024648134,-571.759107,0.00016,2]
[420356527,1776024648143,-571.759107,0.00016,2]
[420356529,1776024648156,-571.759107,0.00016,2]
[420356532,1776024648171,-571.759107,0.00016,2]
[420356533,1776024648181,-571.759107,0.00016,2]
[420356535,1776024648190,-571.759107,0.00016,2]
[420356538,1776024648203,-154.364219,0.00016,2]
[420356540,1776024648215,-154.364219,0.00016,2]
[420356542,1776024648224,-154.364219,0.00016,2]
[420356544,1776024648236,-154.364219,0.00016,2]
[420356546,1776024648251,-154.364219,0.00016,2]
[420356548,1776024648260,-154.364219,0.00016,2]
[420356550,1776024648270,-154.364219,0.00016,2]
[420356552,1776024648280,-154.364219,0.00016,2]
[420356554,1776024648291,-191.0,0.00016,2]
[420356556,1776024648303,-191.0,0.00016,2]
[420356558,1776024648313,-191.0,0.00016,2]
[420356560,1776024648322,-2000.0,0.00016014,2]
[420356562,1776024648333,-1500.0,0.00016016,2]
[420356564,1776024648343,-505.9620918,0.00016016,2]
[420356566,1776024648354,-1756.98858653,0.00016116,2]
[420356568,1776024648364,-504.00816118,0.00016116,2]
[420356570,1776024648374,-2000.0,0.00016116,2]
[420356572,1776024648383,-202.43506709,0.00016116,2]
[420356574,1776024648395,-401.94,0.0001612,2]
[420356576,1776024648404,-192.36,0.00016282,2]
[420356578,1776024648414,-15456.260709,0.00016387,2]
[420356580,1776024648425,-8453.7960563,0.00016387,2]
[420356582,1776024648435,-1835.9197851,0.00016387,2]
[420356584,1776024648444,-352.68356107,0.00016438,2]
[420356586,1776024648453,-250.0,0.00016438,2]
[420356588,1776024648462,-240.0,0.00016438,2]
[420356590,1776024648473,-405.08,0.00016508,2]
[420356592,1776024648483,-154.81,0.00016508,2]
[420356594,1776024648493,-3327.9794426,0.00016564,2]
[420356596,1776024648503,-1600.0,0.00016631,2]
[420356597,1776024648514,-192.36,0.0001667,2]
[420356599,1776024648523,-2148.531,0.00016712,2]
[420356601,1776024648533,-161.178,0.00016712,2]
[420356603,1776024648543,-3448.7579273,0.00016798,2]
[420356605,1776024648553,-1886.2968679,0.00016798,2]
[420356607,1776024648562,-409.6490756,0.00016798,2]
[420356609,1776024648571,-401.94,0.00016821,2]
[420356612,1776024648582,-246.0,0.00016876,2]
[420356614,1776024648591,-246.0,0.00016908,2]
[420356616,1776024648601,-9999.99,0.00016922,2]
[420356618,1776024648611,-742.572586,0.0001698,2]
[420356620,1776024648624,-350.0,0.00017,2]
[420356622,1776024648633,-246.0,0.00017045,2]
[420356624,1776024648643,-192.36,0.00017058,2]
[420356626,1776024648655,-246.0,0.00017123,2]
[420356628,1776024648664,-246.0,0.00017154,2]
[420356630,1776024648673,-246.0,0.00017165,2]
[420356632,1776024648683,-352.68356107,0.00017169,2]
[420356634,1776024648692,-246.0,0.00017193,2]
[420356636,1776024648707,-155.7004,0.000172,2]
[420356638,1776024648716,-246.0,0.00017237,2]
[420356640,1776024648725,-6025.0,0.00017239,2]
[420356642,1776024648736,-2472.0,0.00017239,2]
[420356644,1776024648749,-246.0,0.00017341,2]
[420356646,1776024648760,-246.0,0.00017396,2]
[420356648,1776024648769,-246.0,0.00017421,2]
[420356650,1776024648781,-246.0,0.00017541,2]
[420356652,1776024648793,-246.0,0.00017593,2]
[420356654,1776024648804,-2000.0,0.00017615,2]
[420356656,1776024648813,-246.0,0.00017733,2]
[420356658,1776024648825,-1348.0,0.00017769,2]
[420356660,1776024648838,-622.0,0.00017769,2]
[420356662,1776024648851,-345.119,0.00017769,2]
[420356664,1776024648862,-1264.0,0.00017769,2]
[420356666,1776024648879,-152.11,0.000178,2]
[420356668,1776024648895,-332.87,0.00017899,2]
[420356670,1776024648905,-178.062962,0.00017899,2]
[420356672,1776024648921,-1100.0,0.000179,6]
[420356674,1776024648938,-352.68356107,0.000179,2]
[420356676,1776024648951,-246.0,0.00017914,2]
[420356678,1776024648968,-246.0,0.00017942,2]
[420356679,1776024648989,-1343.0,0.00017945,2]
[420356681,1776024648998,-502.07568744,0.0001799,2]
[420356684,1776024649012,-500.0,0.00017999,2]
[420356686,1776024649037,-500.0,0.00017999,2]
[420356688,1776024649049,-500.0,0.00017999,2]
[420356690,1776024649069,-597.47833202,0.00017999,2]
[420356692,1776024649094,-500.0,0.00017999,2]
[420356694,1776024649110,-500.0,0.00017999,2]
[420356696,1776024649148,-500.0,0.00017999,2]
[420356699,1776024649164,-500.0,0.00017999,2]
[420356701,1776024649222,-500.0,0.00017999,2]
[420356703,1776024649282,-328.67080483,0.00017999,2]
[420356704,1776024649331,-428700.16135477,0.00018,2]
[420356707,1776024649390,-61177.39495602,0.00018,2]
[420356914,1776024652794,-416.0,0.00017239,2]
[420356916,1776024652810,-568.49388968,0.00018,2]
[420356968,1776024653425,-151.0,0.00012859,2]
[420356970,1776024653450,-642.1136,0.00014133,2]
[420356985,1776024653703,-346.85943872,0.00014133,2]
[420356987,1776024653719,-463715.97414988,0.00018,2]
[420356989,1776024653741,-7585.45020132,0.00018,2]
[420356991,1776024653759,-567.1714759,0.00018,2]
[420356993,1776024653783,-130943.19355146,0.00018,2]
[420356995,1776024653802,-2517.74549184,0.00018,2]
[420356998,1776024653831,-1165.57730191,0.00018,2]
[420357000,1776024653876,-26043.30398392,0.00018,2]
[420357002,1776024653936,-6486.69601608,0.00018,2]
[420357005,1776024654021,-315.51534861,0.00018,2]
[420357007,1776024654055,-710.32,0.00018,2]
[420357009,1776024654096,-46249.356553,0.00018,2]
[420357406,1776025344773,500.0,0.0003013,120]
[420357422,1776025832774,-250.0,0.00013,2]
[420357423,1776025832786,-148.05387866,0.00013,2]
[420357424,1776025832799,-196.94612134,0.00013,2]
[420357425,1776025832808,-200.0,0.00013817,2]
[420357426,1776025832818,-912.51149684,0.00013896,2]
[420357427,1776025832880,-287.48850316,0.00013896,2]
[420357428,1776025832890,-300.0,0.00013896,2]
[420357429,1776025832901,-300.0,0.00013896,2]
[420357430,1776025832911,-2500.0,0.00013897,2]
[420357431,1776025832924,-2500.0,0.00013897,2]
[420357432,1776025832933,-161.19409088,0.00014245,2]
[420357433,1776025832950,-150.0,0.00014299,2]
[420357434,1776025832959,-1140.52368136,0.000143,2]
[420357435,1776025832972,-1359.47631864,0.000143,2]
[420357436,1776025832994,-200.0,0.000143,2]
[420357437,1776025833005,-250.0,0.000143,2]
[420357438,1776025833036,-300.0,0.000143,2]
[420357439,1776025833116,-500.0,0.000143,2]
[420357440,1776025833157,-4041.28034757,0.000143,2]
[420357441,1776025833185,-958.71965243,0.000143,2]
[420357442,1776025833225,-300.0,0.00015,2]
[420357443,1776025833244,-523.66769527,0.00015,2]
[420357444,1776025833266,-447.6126523,0.00015,2]
[420357445,1776025833281,-2073.04999997,0.00015,2]
[420357446,1776025833301,-3439.67965246,0.00015,2]
[420357447,1776025833313,-1495.08255159,0.00015286,2]
[420357448,1776025833327,-184.91744841,0.00015286,2]
[420357449,1776025833349,-115.08255159,0.000158,2]
[420357450,1776025833402,-34.91744841,0.000158,2]
[420357451,1776025833413,-250.0,0.00016,2]
[420357452,1776025833445,-250.0,0.00016,2]
[420357453,1776025833455,-241.44043087,0.00016202,2]
[420357454,1776025833491,-1860.13956913,0.00016202,2]
[420357455,1776025833537,-500.0,0.00016202,2]
[420357456,1776025833546,-235.224,0.00016202,2]
[420357457,1776025833556,-8573.44787783,0.00016311,2]
[420357458,1776025833580,-1000.0,0.00016311,2]
[420357459,1776025833599,-474.13212217,0.00016311,2]
[420357460,1776025833608,-273.83,0.00016356,2]
[420357461,1776025833618,-150.0,0.00016437,2]
[420357462,1776025833630,-1029.78472073,0.00016477,2]
[420357464,1776025838287,-426.61846658,0.00016477,2]
[420357465,1776025838367,-2697.13111269,0.00016477,2]
[420357466,1776025838376,-43008.03269692,0.00016477,2]
[420357467,1776025838392,-5861.0,0.00016477,2]
[420357503,1776025840595,-400.76428681,0.00016477,2]
[420357504,1776025840621,-372.34049029,0.00016477,2]
[420357505,1776025840845,-49085.71652598,0.00016477,2]
[420357506,1776025840856,-11221.5047,0.00016477,2]
[420357507,1776025840865,-500.0,0.00016536,3]
[420357508,1776025840874,-519.22196855,0.00016573,2]
[420357509,1776025840885,-500.0,0.00016576,2]
[420357510,1776025840896,-500.0,0.00016576,2]
[420357511,1776025840906,-500.0,0.00016576,2]
[420357512,1776025840915,-500.0,0.00016576,2]
[420357513,1776025840925,-500.0,0.00016576,2]
[420357514,1776025840936,-305.80477412,0.00016576,2]
[420357515,1776025840952,-500.0,0.00016576,2]
[420357516,1776025840962,-500.0,0.00016576,2]
[420357517,1776025840975,-113362.17,0.00016577,2]
[420357518,1776025840995,-935.64,0.00016648,2]
[420357519,1776025841007,-350.0,0.00017,2]
[420357520,1776025841017,-5000.0,0.00017,2]
[420357521,1776025841039,-1500.0,0.00017145,2]
[420357522,1776025841052,-150.0561,0.000172,2]
[420357523,1776025841066,-165.89,0.00017237,2]
[420357524,1776025841084,-5610.7523,0.00017301,2]
[420357525,1776025841096,-150.0,0.00017626,2]
[420357526,1776025841105,-286.48877466,0.00017626,2]
[420357527,1776025841125,-296.69191167,0.00017788,2]
[420357528,1776025841134,-303.53456016,0.00017788,2]
[420357529,1776025841147,-2500.0,0.00017788,2]
[420357530,1776025841156,-5000.0,0.00017788,2]
[420357531,1776025841171,-1432.74958818,0.000178,2]
[420357532,1776025841184,-4934.57657404,0.000178,2]
[420357533,1776025841193,-296.69191161,0.000178,2]
[420357534,1776025841217,-296.69191161,0.00017813,2]
[420357535,1776025841226,-296.69191161,0.00017825,2]
[420357536,1776025841242,-296.69191161,0.00017838,2]
[420357537,1776025841254,-296.69191161,0.0001785,2]
[420357538,1776025841264,-296.69191161,0.00017863,2]
[420357539,1776025841273,-160.142,0.0001787,2]
[420357540,1776025841297,-500.0,0.0001787,2]
[420357541,1776025841308,-500.0,0.00017873,2]
[420357542,1776025841318,-296.69191161,0.00017875,2]
[420357543,1776025841332,-500.0,0.00017887,2]
[420357544,1776025841344,-500.0,0.00017887,2]
[420357545,1776025841353,-500.0,0.00017887,2]
[420357546,1776025841363,-194.65947649,0.00017887,2]
[420357547,1776025841375,-520.48197908,0.00017887,2]
[420357548,1776025841389,-500.0,0.00017887,2]
[420357549,1776025841399,-405.02719491,0.00017887,2]
[420357550,1776025841408,-296.69191161,0.00017888,2]
[420357551,1776025841418,-727.0,0.00017888,5]
[420357552,1776025841434,-150.0,0.00017888,2]
[420357553,1776025841446,-205744.99287606,0.00017888,2]
[420357555,1776025842561,-669.73601053,0.00017888,2]
[420357556,1776025842623,-1414.65637329,0.00017888,2]
[420357557,1776025842686,-276.99747719,0.00017888,2]
[420357558,1776025842698,-1407.38003316,0.00017888,2]
[420357559,1776025842752,-3882.68968757,0.00017888,2]
[420357569,1776025846083,-388.265,0.00015781,2]
[420357570,1776025846110,-29.11429,0.00017888,2]
[420357571,1776025846220,-1084.15883698,0.00017888,2]
[420357572,1776025846492,-18799.28192885,0.00017888,2]
[420357575,1776025901047,872.0,0.0003013,120]
[420357576,1776025960814,510.00064058,0.00030137,120]
[420357577,1776025966869,718.0,0.0003013,120]
[420357578,1776026141113,1329.22,0.00025182,120]
[420357585,1776027033017,-292.0434616,0.000129,2]
[420357586,1776027033078,-207.9565384,0.000129,2]
[420357587,1776027033092,-1223.1441,0.000129,2]
[420357588,1776027033108,-168.89,0.0001299,2]
[420357589,1776027033117,-250.0,0.00013,2]
[420357590,1776027033137,-611.572,0.00013545,2]
[420357591,1776027033164,-203.8573,0.00014835,2]
[420357592,1776027033174,-300.0,0.00015,2]
[420357593,1776027033192,-300.0,0.00015921,2]
[420357594,1776027033205,-1348.0,0.00015922,2]
[420357595,1776027033214,-591.74501776,0.00015922,2]
[420357596,1776027033229,-455.25498224,0.00015922,2]
[420357597,1776027033256,-6025.0,0.00015922,2]
[420357598,1776027033265,-2472.0,0.00015922,2]
[420357599,1776027033278,-166.66,0.00016086,2]
[420357600,1776027033291,-2000.0,0.00016262,2]
[420357601,1776027033308,-200.0,0.00016276,2]
[420357602,1776027033318,-307.26,0.00016361,2]
[420357603,1776027033328,-150.0,0.000164,2]
[420357605,1776027033339,-166.66,0.00016425,2]
[420357607,1776027033354,-618.42,0.0001645,2]
[420357609,1776027033367,-664.18028367,0.00016582,2]
[420357611,1776027033379,-935.81971633,0.00016582,2]
[420357613,1776027033394,-174.12,0.000167,2]
[420357615,1776027033408,-166.66,0.00016763,2]
[420357617,1776027033418,-189.86028367,0.00016788,2]
[420357619,1776027033445,-1139.35971633,0.00016788,2]
[420357622,1776027033483,-3240.0,0.00016788,2]
[420357625,1776027033522,-200.0,0.00016789,2]
[420357627,1776027033548,-1600.0,0.00016997,2]
[420357629,1776027033585,-166.66,0.00017102,2]
[420357631,1776027033619,-618.42,0.00017272,2]
[420357633,1776027033631,-420.0,0.00017408,2]
[420357634,1776027033688,-1600.0,0.00017411,2]
[420357637,1776027033698,-1694.682,0.0001744,2]
[420357638,1776027033716,-166.66,0.0001744,2]
[420357641,1776027033751,-169.885,0.0001744,2]
[420357642,1776027033760,-934.89732537,0.00017462,2]
[420357645,1776027033784,-969.80549567,0.00017462,2]
[420357647,1776027033804,-13127.04337363,0.00017462,2]
[420357651,1776027033848,-2111.69698143,0.00017462,2]
[420357653,1776027033857,-824.5502139,0.00017462,2]
[420357655,1776027033878,-400.0,0.000175,6]
[420357657,1776027033887,-500.0,0.00017514,2]
[420357659,1776027033897,-500.0,0.00017514,2]
[420357661,1776027033916,-500.0,0.00017514,2]
[420357663,1776027033926,-500.0,0.00017514,2]
[420357665,1776027033936,-500.0,0.00017514,2]
[420357667,1776027033951,-500.0,0.00017514,2]
[420357669,1776027033967,-500.0,0.00017514,2]
[420357671,1776027033977,-800.0,0.000176,6]
[420357673,1776027033986,-1000.0,0.00017688,2]
[420357675,1776027034006,-2500.0,0.00017688,2]
[420357677,1776027034016,-1300.0,0.000177,6]
[420357679,1776027034029,-296.69191161,0.000177,2]
[420357681,1776027034047,-5000.0,0.00017726,2]
[420357683,1776027034061,-234.58,0.00017729,2]
[420357685,1776027034070,-421.64629612,0.00017737,2]
[420357687,1776027034086,-166.66,0.00017779,2]
[420357689,1776027034095,-500.0,0.00017779,2]
[420357691,1776027034112,-173.8,0.00017787,2]
[420357692,1776027034122,-500.0,0.00017787,2]
[420357694,1776027034134,-198.76477153,0.00017787,2]
[420357696,1776027034146,-364.33738536,0.00017787,2]
[420357698,1776027034159,-283.51903644,0.00017787,2]
[420357699,1776027034170,-422.86719713,0.00017787,2]
[420357700,1776027034182,-180.0,0.00017787,2]
[420357701,1776027034195,-168.15249307,0.00017787,2]
[420357702,1776027034211,-162.06535418,0.00017787,2]
[420357703,1776027034221,-150.0,0.00017787,2]
[420357704,1776027034241,-150.0,0.00017787,2]
[420357705,1776027034253,-500.0,0.00017787,2]
[420357706,1776027034276,-500.0,0.00017787,2]
[420357707,1776027034286,-161.19409088,0.00017788,2]
[420357708,1776027034297,-9088.39755382,0.00017788,2]
[420357709,1776027034338,-914.84165159,0.00017788,2]
[420357710,1776027034374,-58733.31569459,0.00017788,2]
[420357711,1776027034389,-533131.55131095,0.00017788,2]
[420357712,1776027034401,-45282.72369156,0.00017788,2]
[420357713,1776027034435,-52524.86615299,0.00017788,2]
[420357723,1776027038933,-2960.23624015,0.00017788,2]
[420357724,1776027038952,-547.4565743,0.00017788,2]
[420357725,1776027038964,-2272.82670332,0.00017788,2]
[420357726,1776027038984,-767.43131246,0.00017788,2]
[420357731,1776027040729,-338.004,0.00017788,2]
[420357733,1776027040741,-305.11934148,0.00017788,2]
[420357738,1776027040779,-5297.27061861,0.00017788,2]
[420357741,1776027041059,-30505.30675418,0.00017788,2]
[420357742,1776027041071,-150.0803,0.000178,2]
[420357743,1776027041081,-1700.0,0.000178,6]
[420357744,1776027041092,-1600.0,0.00017826,2]
[420357745,1776027041101,-500.0,0.00017887,2]
[420357746,1776027041112,-500.0,0.00017887,2]
[420357747,1776027041122,-500.0,0.00017887,2]
[420357748,1776027041131,-500.0,0.00017887,2]
[420357749,1776027041141,-500.0,0.00017887,2]
[420357750,1776027041155,-500.0,0.00017887,2]
[420357751,1776027041164,-500.0,0.00017887,2]
[420357752,1776027041174,-500.0,0.00017887,2]
[420357753,1776027041187,-500.0,0.00017887,2]
[420357754,1776027041200,-500.0,0.00017887,2]
[420357755,1776027041209,-500.0,0.00017887,2]
[420357756,1776027041224,-500.0,0.00017899,2]
[420357757,1776027041233,-2200.0,0.000179,6]
[420357758,1776027041248,-202.35637344,0.000179,2]
[420357759,1776027041262,-955.16639212,0.000179,2]
[420357760,1776027041271,-250.0,0.00017923,2]
[420357761,1776027041281,-310.71,0.00017923,2]
[420357762,1776027041293,-591.0,0.00017971,2]
[420357763,1776027041308,-235.38018026,0.00017973,2]
[420357770,1776027043452,-416.0,0.00015922,2]
[420357771,1776027043476,-264.61981974,0.00017973,2]
[420357772,1776027043664,-891.6887688,0.00017988,2]
[420357773,1776027043750,-591.0,0.00017988,2]
[420357774,1776027043799,-198.81929837,0.00018,5]
[420357776,1776027044185,-381.18070163,0.00018,5]
[420357777,1776027044217,-641.0,0.00018,5]
[420357778,1776027044226,-1168.28140157,0.00018,2]
[420357779,1776027044244,-530.77985321,0.00018,2]
[420357780,1776027044280,-1265.91989,0.00018,2]
[420357781,1776027044329,-1139.33803329,0.00018,2]
[420357785,1776027046271,-1423.0567,0.00018,2]
[420357786,1776027046288,-621.19233296,0.00018,2]
[420357787,1776027046305,-2128.68306836,0.00018,2]
[420357788,1776027046339,-11546.86014265,0.00018,2]
[420357789,1776027046402,-10175.88857796,0.00018,2]
[420357790,1776027046412,-30955.15039623,0.00018,2]
[420357791,1776027046427,-42884.46414847,0.00018,2]
[420357792,1776027046441,-1449.26927114,0.00018,2]
[420357793,1776027046462,-350.88499915,0.00018,2]
[420357794,1776027046683,-198484.91790083,0.00018,2]